[Event "Titled Tuesday Blitz June 27 Early 2023"]
[White "Zuriel, Marisa"]
[Black "Jovic, Stanoje"]
[WhiteFideId "109142"]
[BlackFideId "905020"]
[WhiteElo "2326"]
[BlackElo "2489"]
[Result "0-1"]
[Round "9"]
[TimeControl "180+2"]
[Date "2023.06.27"]
[WhiteClock "0:00:33"]
[BlackClock "0:00:30"]
[Board "88"]

1. e4 {[%clk 0:02:52]}  c6 {[%clk 0:02:59]} 2. d4 {[%clk 0:02:50]}  d5 {[%clk 0:02:59]} 3. e5 {[%clk 0:02:50]}  c5 {[%clk 0:02:59]} 4. dxc5 {[%clk 0:02:49]}  e6 {[%clk 0:02:59]} 5. a3 {[%clk 0:02:48]}  Bxc5 {[%clk 0:02:59]} 6. b4 {[%clk 0:02:49]}  Bb6 {[%clk 0:02:59]} 7. Bd3 {[%clk 0:02:49]}  Ne7 {[%clk 0:02:59]} 8. Qg4 {[%clk 0:02:49]}  Ng6 {[%clk 0:02:55]} 9. Bb2 {[%clk 0:02:45]}  Nc6 {[%clk 0:02:52]} 10. Nf3 {[%clk 0:02:43]}  Qc7 {[%clk 0:02:52]} 11. O-O {[%clk 0:02:37]}  O-O {[%clk 0:02:45]} 12. Re1 {[%clk 0:02:35]}  Bd7 {[%clk 0:02:35]} 13. Bxg6 {[%clk 0:02:31]}  fxg6 {[%clk 0:02:32]} 14. Nbd2 {[%clk 0:02:31]}  Ne7 {[%clk 0:02:25]} 15. c4 {[%clk 0:02:27]}  h5 {[%clk 0:02:19]} 16. Qg5 {[%clk 0:02:22]}  Qd8 {[%clk 0:02:06]} 17. c5 {[%clk 0:02:21]}  Bc7 {[%clk 0:02:03]} 18. Nd4 {[%clk 0:02:20]}  Kh7 {[%clk 0:01:54]} 19. N2f3 {[%clk 0:02:19]}  Nf5 {[%clk 0:01:33]} 20. Qxd8 {[%clk 0:02:18]}  Bxd8 {[%clk 0:01:30]} 21. Rad1 {[%clk 0:02:07]}  g5 {[%clk 0:01:27]} 22. Nxf5 {[%clk 0:01:57]}  Rxf5 {[%clk 0:01:22]} 23. Nd4 {[%clk 0:01:56]}  Rf7 {[%clk 0:01:21]} 24. Rd3 {[%clk 0:01:46]}  Rc8 {[%clk 0:01:14]} 25. Rc1 {[%clk 0:01:38]}  g4 {[%clk 0:01:10]} 26. h3 {[%clk 0:01:36]}  Bg5 {[%clk 0:01:05]} 27. hxg4 {[%clk 0:01:31]}  Bxc1 {[%clk 0:01:02]} 28. Bxc1 {[%clk 0:01:30]}  b6 {[%clk 0:00:56]} 29. Nb3 {[%clk 0:01:28]}  Ba4 {[%clk 0:00:54]} 30. gxh5 {[%clk 0:01:16]}  Bxb3 {[%clk 0:00:53]} 31. Rxb3 {[%clk 0:01:16]}  bxc5 {[%clk 0:00:53]} 32. bxc5 {[%clk 0:01:16]}  Rxc5 {[%clk 0:00:53]} 33. Be3 {[%clk 0:01:16]}  Rc4 {[%clk 0:00:52]} 34. g3 {[%clk 0:00:54]}  d4 {[%clk 0:00:49]} 35. Bg5 {[%clk 0:00:54]}  Rc3 {[%clk 0:00:43]} 36. Rb4 {[%clk 0:00:52]}  Rd7 {[%clk 0:00:43]} 37. Kf1 {[%clk 0:00:45]}  Rxa3 {[%clk 0:00:39]} 38. Rb8 {[%clk 0:00:41]}  d3 {[%clk 0:00:36]} 39. Re8 {[%clk 0:00:40]}  d2 {[%clk 0:00:31]} 40. Bxd2 {[%clk 0:00:37]}  Rxd2 {[%clk 0:00:31]} 41. Rxe6 {[%clk 0:00:33]}  Rf3 {[%clk 0:00:30]} 0-1


[Site "https://www.chess.com"]

[Event "Titled Tuesday Blitz June 27 Early 2023"]
[White "Howell, David W L"]
[Black "Kielinkei"]
[WhiteFideId "410608"]
[WhiteElo "2999"]
[BlackElo "2470"]
[Result "1-0"]
[Round "9"]
[TimeControl "180+2"]
[Date "2023.06.27"]
[WhiteClock "0:00:24"]
[BlackClock "0:00:00"]
[Board "89"]

1. e4 {[%clk 0:03:00]}  c5 {[%clk 0:02:59]} 2. Nf3 {[%clk 0:02:59]}  e6 {[%clk 0:02:59]} 3. Bd3 {[%clk 0:02:53]}  Nc6 {[%clk 0:02:57]} 4. O-O {[%clk 0:02:52]}  d5 {[%clk 0:02:40]} 5. exd5 {[%clk 0:02:33]}  exd5 {[%clk 0:02:41]} 6. Re1+ {[%clk 0:02:33]}  Be7 {[%clk 0:02:41]} 7. Bb5 {[%clk 0:02:29]}  Nf6 {[%clk 0:02:08]} 8. Ne5 {[%clk 0:02:18]}  Qc7 {[%clk 0:02:01]} 9. Qe2 {[%clk 0:02:06]}  Be6 {[%clk 0:01:55]} 10. d4 {[%clk 0:01:21]}  O-O {[%clk 0:01:30]} 11. Bxc6 {[%clk 0:01:21]}  bxc6 {[%clk 0:01:27]} 12. Bf4 {[%clk 0:01:19]}  Qc8 {[%clk 0:01:18]} 13. dxc5 {[%clk 0:01:14]}  Bxc5 {[%clk 0:01:14]} 14. Nd2 {[%clk 0:01:14]}  Re8 {[%clk 0:01:08]} 15. h3 {[%clk 0:01:08]}  Nd7 {[%clk 0:00:59]} 16. Qf3 {[%clk 0:00:58]}  Bd4 {[%clk 0:00:52]} 17. c3 {[%clk 0:00:53]}  Bxe5 {[%clk 0:00:49]} 18. Bxe5 {[%clk 0:00:54]}  Nxe5 {[%clk 0:00:49]} 19. Rxe5 {[%clk 0:00:55]}  Qc7 {[%clk 0:00:39]} 20. Rae1 {[%clk 0:00:53]}  Re7 {[%clk 0:00:35]} 21. Qg3 {[%clk 0:00:42]}  Rae8 {[%clk 0:00:25]} 22. Nf3 {[%clk 0:00:42]}  h6 {[%clk 0:00:17]} 23. b4 {[%clk 0:00:36]}  Qd8 {[%clk 0:00:12]} 24. Nd4 {[%clk 0:00:35]}  Bd7 {[%clk 0:00:09]} 25. a3 {[%clk 0:00:31]}  Rxe5 {[%clk 0:00:08]} 26. Rxe5 {[%clk 0:00:32]}  Rxe5 {[%clk 0:00:08]} 27. Qxe5 {[%clk 0:00:32]}  Qe8 {[%clk 0:00:05]} 28. Qxe8+ {[%clk 0:00:29]}  Bxe8 {[%clk 0:00:05]} 29. f4 {[%clk 0:00:29]}  g6 {[%clk 0:00:04]} 30. Kf2 {[%clk 0:00:30]}  Kf8 {[%clk 0:00:04]} 31. Ke3 {[%clk 0:00:30]}  Ke7 {[%clk 0:00:05]} 32. Nb3 {[%clk 0:00:30]}  Kd6 {[%clk 0:00:05]} 33. Kd4 {[%clk 0:00:31]}  Bd7 {[%clk 0:00:05]} 34. h4 {[%clk 0:00:27]}  h5 {[%clk 0:00:04]} 35. g3 {[%clk 0:00:27]}  Bc8 {[%clk 0:00:03]} 36. Nd2 {[%clk 0:00:26]}  Bg4 {[%clk 0:00:03]} 37. Nf1 {[%clk 0:00:27]}  Bc8 {[%clk 0:00:03]} 38. Ne3 {[%clk 0:00:27]}  Bd7 {[%clk 0:00:02]} 39. Nd1 {[%clk 0:00:26]}  Bc8 {[%clk 0:00:02]} 40. Nf2 {[%clk 0:00:27]}  Bd7 {[%clk 0:00:03]} 41. Nd3 {[%clk 0:00:27]}  Bc8 {[%clk 0:00:03]} 42. Ne5 {[%clk 0:00:27]}  Be6 {[%clk 0:00:04]} 43. Nf3 {[%clk 0:00:27]}  Bc8 {[%clk 0:00:04]} 44. Nd2 {[%clk 0:00:28]}  Be6 {[%clk 0:00:04]} 45. Nb3 {[%clk 0:00:28]}  Bc8 {[%clk 0:00:05]} 46. a4 {[%clk 0:00:27]}  Bd7 {[%clk 0:00:05]} 47. Na5 {[%clk 0:00:27]}  Bc8 {[%clk 0:00:05]} 48. c4 {[%clk 0:00:26]}  dxc4 {[%clk 0:00:05]} 49. Nxc4+ {[%clk 0:00:27]}  Kc7 {[%clk 0:00:04]} 50. Kc5 {[%clk 0:00:27]}  Be6 {[%clk 0:00:00]} 51. Ne5 {[%clk 0:00:24]} 1-0


[Site "https://www.chess.com"]

[Event "Titled Tuesday Blitz June 27 Early 2023"]
[White "NLLO777"]
[Black "Liu, Xiangyi"]
[BlackFideId "8605718"]
[WhiteElo "2476"]
[BlackElo "2714"]
[Result "0-1"]
[Round "9"]
[TimeControl "180+2"]
[Date "2023.06.27"]
[WhiteClock "0:00:03"]
[BlackClock "0:00:05"]
[Board "90"]

1. d4 {[%clk 0:03:00]}  c5 {[%clk 0:00:51]} 2. d5 {[%clk 0:02:58]}  e6 {[%clk 0:00:52]} 3. e4 {[%clk 0:02:55]}  Nf6 {[%clk 0:00:52]} 4. Nc3 {[%clk 0:02:54]}  d6 {[%clk 0:00:52]} 5. Nf3 {[%clk 0:02:53]}  Be7 {[%clk 0:00:53]} 6. Bc4 {[%clk 0:02:51]}  e5 {[%clk 0:00:53]} 7. h3 {[%clk 0:02:50]}  O-O {[%clk 0:00:53]} 8. O-O {[%clk 0:02:50]}  Na6 {[%clk 0:00:54]} 9. Re1 {[%clk 0:02:47]}  Nc7 {[%clk 0:00:54]} 10. Bf1 {[%clk 0:02:48]}  a6 {[%clk 0:00:53]} 11. a4 {[%clk 0:02:48]}  b6 {[%clk 0:00:54]} 12. Bg5 {[%clk 0:02:45]}  Rb8 {[%clk 0:00:53]} 13. b3 {[%clk 0:02:24]}  Nfe8 {[%clk 0:00:50]} 14. Be3 {[%clk 0:02:20]}  g6 {[%clk 0:00:45]} 15. Nd2 {[%clk 0:02:16]}  f5 {[%clk 0:00:43]} 16. f3 {[%clk 0:02:11]}  f4 {[%clk 0:00:41]} 17. Bf2 {[%clk 0:02:11]}  Bh4 {[%clk 0:00:41]} 18. Qe2 {[%clk 0:02:12]}  h5 {[%clk 0:00:40]} 19. Nc4 {[%clk 0:02:10]}  Bxf2+ {[%clk 0:00:39]} 20. Qxf2 {[%clk 0:02:10]}  g5 {[%clk 0:00:39]} 21. Be2 {[%clk 0:02:01]}  Rf7 {[%clk 0:00:34]} 22. a5 {[%clk 0:01:55]}  b5 {[%clk 0:00:33]} 23. Nb6 {[%clk 0:01:56]}  Nf6 {[%clk 0:00:33]} 24. Na2 {[%clk 0:01:40]}  Na8 {[%clk 0:00:32]} 25. Nxc8 {[%clk 0:01:38]}  Qxc8 {[%clk 0:00:31]} 26. b4 {[%clk 0:01:38]}  c4 {[%clk 0:00:30]} 27. Nc3 {[%clk 0:01:29]}  Nc7 {[%clk 0:00:29]} 28. Kf1 {[%clk 0:01:19]}  g4 {[%clk 0:00:28]} 29. hxg4 {[%clk 0:01:18]}  hxg4 {[%clk 0:00:28]} 30. Qh4 {[%clk 0:01:17]}  Rh7 {[%clk 0:00:27]} 31. Qg5+ {[%clk 0:01:11]}  Kf7 {[%clk 0:00:23]} 32. fxg4 {[%clk 0:01:08]}  Qh8 {[%clk 0:00:15]} 33. Kf2 {[%clk 0:01:04]}  Rg8 {[%clk 0:00:13]} 34. Qf5 {[%clk 0:01:05]}  Rh2 {[%clk 0:00:14]} 35. Bf3 {[%clk 0:01:01]}  Qh4+ {[%clk 0:00:13]} 36. Ke2 {[%clk 0:01:02]}  Qg3 {[%clk 0:00:09]} 37. Rg1 {[%clk 0:00:57]}  Ke7 {[%clk 0:00:06]} 38. Raf1 {[%clk 0:00:38]}  Nxg4 {[%clk 0:00:06]} 39. Nd1 {[%clk 0:00:11]}  Nf6 {[%clk 0:00:06]} 40. Nf2 {[%clk 0:00:11]}  Nd7 {[%clk 0:00:06]} 41. Rh1 {[%clk 0:00:09]}  Rg5 {[%clk 0:00:06]} 42. Rxh2 {[%clk 0:00:06]}  Rxf5 {[%clk 0:00:05]} 43. Rh3 {[%clk 0:00:07]}  Qg6 {[%clk 0:00:04]} 44. exf5 {[%clk 0:00:07]}  Qxf5 {[%clk 0:00:05]} 45. Be4 {[%clk 0:00:08]}  Qg5 {[%clk 0:00:05]} 46. Rfh1 {[%clk 0:00:08]}  Nf6 {[%clk 0:00:05]} 47. Bf3 {[%clk 0:00:07]}  Ncxd5 {[%clk 0:00:05]} 48. Ne4 {[%clk 0:00:06]}  Nxe4 {[%clk 0:00:02]} 49. Bxe4 {[%clk 0:00:07]}  Nf6 {[%clk 0:00:03]} 50. Kf3 {[%clk 0:00:06]}  d5 {[%clk 0:00:04]} 51. Rh6 {[%clk 0:00:01]}  dxe4+ {[%clk 0:00:04]} 52. Kf2 {[%clk 0:00:02]}  Qg3+ {[%clk 0:00:04]} 53. Ke2 {[%clk 0:00:03]}  Qxg2+ {[%clk 0:00:04]} 54. Kd1 {[%clk 0:00:04]}  e3 {[%clk 0:00:05]} 55. Re1 {[%clk 0:00:03]}  Qd2# {[%clk 0:00:05]} 0-1


[Site "https://www.chess.com"]

[Event "Titled Tuesday Blitz June 27 Early 2023"]
[White "KorolDimitriy75"]
[Black "Yurovskykh, Oleksandr"]
[BlackFideId "14134020"]
[WhiteElo "2430"]
[BlackElo "2573"]
[Result "0-1"]
[Round "9"]
[TimeControl "180+2"]
[Date "2023.06.27"]
[WhiteClock "0:00:01"]
[BlackClock "0:00:16"]
[Board "93"]

1. d4 {[%clk 0:03:00]}  d5 {[%clk 0:02:54]} 2. c4 {[%clk 0:03:00]}  dxc4 {[%clk 0:02:48]} 3. Nf3 {[%clk 0:03:00]}  Nf6 {[%clk 0:02:44]} 4. Nc3 {[%clk 0:03:00]}  a6 {[%clk 0:02:41]} 5. e4 {[%clk 0:03:00]}  b5 {[%clk 0:02:41]} 6. e5 {[%clk 0:03:00]}  Nd5 {[%clk 0:02:41]} 7. a4 {[%clk 0:03:00]}  e6 {[%clk 0:02:38]} 8. axb5 {[%clk 0:02:54]}  Bb4 {[%clk 0:02:36]} 9. Bd2 {[%clk 0:02:48]}  Nb6 {[%clk 0:02:36]} 10. bxa6 {[%clk 0:02:36]}  Rxa6 {[%clk 0:02:37]} 11. Be2 {[%clk 0:02:28]}  O-O {[%clk 0:02:33]} 12. O-O {[%clk 0:02:27]}  Rxa1 {[%clk 0:02:30]} 13. Qxa1 {[%clk 0:02:26]}  Nc6 {[%clk 0:02:30]} 14. Be3 {[%clk 0:02:17]}  Bb7 {[%clk 0:02:13]} 15. Rd1 {[%clk 0:02:13]}  Ne7 {[%clk 0:02:10]} 16. Qb1 {[%clk 0:02:04]}  Bxc3 {[%clk 0:02:02]} 17. bxc3 {[%clk 0:02:03]}  Ned5 {[%clk 0:01:57]} 18. Bd2 {[%clk 0:01:31]}  h6 {[%clk 0:01:40]} 19. Bxc4 {[%clk 0:00:43]}  Nxc4 {[%clk 0:01:41]} 20. Qxb7 {[%clk 0:00:42]}  Nxd2 {[%clk 0:01:37]} 21. Rxd2 {[%clk 0:00:42]}  Nxc3 {[%clk 0:01:36]} 22. Rc2 {[%clk 0:00:38]}  Nd5 {[%clk 0:01:37]} 23. h3 {[%clk 0:00:34]}  Qa8 {[%clk 0:01:33]} 24. Qxa8 {[%clk 0:00:22]}  Rxa8 {[%clk 0:01:34]} 25. g3 {[%clk 0:00:21]}  g5 {[%clk 0:01:32]} 26. Kg2 {[%clk 0:00:21]}  Kg7 {[%clk 0:01:31]} 27. Rb2 {[%clk 0:00:16]}  Ra3 {[%clk 0:01:28]} 28. Rc2 {[%clk 0:00:16]}  Rd3 {[%clk 0:01:28]} 29. Rb2 {[%clk 0:00:14]}  Kg6 {[%clk 0:01:27]} 30. Rc2 {[%clk 0:00:14]}  h5 {[%clk 0:01:27]} 31. Rc4 {[%clk 0:00:11]}  g4 {[%clk 0:01:26]} 32. hxg4 {[%clk 0:00:12]}  hxg4 {[%clk 0:01:27]} 33. Nh4+ {[%clk 0:00:12]}  Kg7 {[%clk 0:01:25]} 34. Kg1 {[%clk 0:00:12]}  Rd1+ {[%clk 0:01:24]} 35. Kg2 {[%clk 0:00:12]}  Rd2 {[%clk 0:01:23]} 36. Kg1 {[%clk 0:00:12]}  Rd3 {[%clk 0:01:05]} 37. Ng2 {[%clk 0:00:11]}  Kg6 {[%clk 0:00:58]} 38. Nf4+ {[%clk 0:00:10]}  Nxf4 {[%clk 0:00:57]} 39. gxf4 {[%clk 0:00:11]}  Rf3 {[%clk 0:00:45]} 40. Rxc7 {[%clk 0:00:10]}  Rxf4 {[%clk 0:00:45]} 41. Rd7 {[%clk 0:00:10]}  Rf3 {[%clk 0:00:33]} 42. Kg2 {[%clk 0:00:10]}  Rd3 {[%clk 0:00:33]} 43. Kh2 {[%clk 0:00:09]}  f6 {[%clk 0:00:26]} 44. exf6 {[%clk 0:00:08]}  Kxf6 {[%clk 0:00:26]} 45. Kg2 {[%clk 0:00:06]}  Kg5 {[%clk 0:00:15]} 46. Rd6 {[%clk 0:00:06]}  Kf5 {[%clk 0:00:14]} 47. Kf1 {[%clk 0:00:05]}  Rd2 {[%clk 0:00:13]} 48. Ke1 {[%clk 0:00:05]}  Ra2 {[%clk 0:00:14]} 49. Kf1 {[%clk 0:00:05]}  Ra1+ {[%clk 0:00:13]} 50. Kg2 {[%clk 0:00:04]}  Ra3 {[%clk 0:00:13]} 51. Kf1 {[%clk 0:00:04]}  Rd3 {[%clk 0:00:13]} 52. Ke2 {[%clk 0:00:04]}  Rb3 {[%clk 0:00:13]} 53. Kf1 {[%clk 0:00:05]}  Rb5 {[%clk 0:00:13]} 54. Ke2 {[%clk 0:00:04]}  Rd5 {[%clk 0:00:10]} 55. Rxd5+ {[%clk 0:00:04]}  exd5 {[%clk 0:00:11]} 56. Ke3 {[%clk 0:00:03]}  Kg5 {[%clk 0:00:11]} 57. f3 {[%clk 0:00:01]}  g3 {[%clk 0:00:11]} 58. f4+ {[%clk 0:00:01]}  Kg4 {[%clk 0:00:10]} 59. f5 {[%clk 0:00:01]}  Kxf5 {[%clk 0:00:11]} 60. Kf3 {[%clk 0:00:02]}  g2 {[%clk 0:00:11]} 61. Kxg2 {[%clk 0:00:02]}  Ke4 {[%clk 0:00:12]} 62. Kf2 {[%clk 0:00:03]}  Kxd4 {[%clk 0:00:13]} 63. Ke2 {[%clk 0:00:03]}  Kc3 {[%clk 0:00:14]} 64. Kd1 {[%clk 0:00:03]}  Kd3 {[%clk 0:00:15]} 65. Ke1 {[%clk 0:00:03]}  Kc2 {[%clk 0:00:15]} 66. Ke2 {[%clk 0:00:01]}  d4 {[%clk 0:00:16]} 0-1


[Site "https://www.chess.com"]

[Event "Titled Tuesday Blitz June 27 Early 2023"]
[White "Pandey Srishti"]
[Black "Gontcharov, Vladislav"]
[WhiteFideId "35093290"]
[BlackFideId "4123492"]
[WhiteElo "2445"]
[BlackElo "2561"]
[Result "0-1"]
[Round "9"]
[TimeControl "180+2"]
[Date "2023.06.27"]
[WhiteClock "0:00:22"]
[BlackClock "0:00:59"]
[Board "94"]

1. e4 {[%clk 0:02:34]}  e6 {[%clk 0:02:59]} 2. d4 {[%clk 0:02:32]}  d5 {[%clk 0:02:59]} 3. Nc3 {[%clk 0:02:30]}  Bb4 {[%clk 0:02:59]} 4. e5 {[%clk 0:02:16]}  c5 {[%clk 0:02:58]} 5. a3 {[%clk 0:02:16]}  Bxc3+ {[%clk 0:02:58]} 6. bxc3 {[%clk 0:02:17]}  Ne7 {[%clk 0:02:58]} 7. Qg4 {[%clk 0:02:16]}  O-O {[%clk 0:02:58]} 8. Bd3 {[%clk 0:02:10]}  Nbc6 {[%clk 0:02:56]} 9. Ne2 {[%clk 0:02:05]}  c4 {[%clk 0:02:42]} 10. Bh6 {[%clk 0:02:00]}  g6 {[%clk 0:02:29]} 11. Bxf8 {[%clk 0:02:00]}  Qxf8 {[%clk 0:02:23]} 12. h4 {[%clk 0:01:58]}  cxd3 {[%clk 0:02:22]} 13. cxd3 {[%clk 0:01:59]}  f5 {[%clk 0:01:56]} 14. exf6 {[%clk 0:01:58]}  Qxf6 {[%clk 0:01:55]} 15. Qg5 {[%clk 0:01:54]}  Qxg5 {[%clk 0:01:44]} 16. hxg5 {[%clk 0:01:54]}  e5 {[%clk 0:01:44]} 17. dxe5 {[%clk 0:01:52]}  Nxe5 {[%clk 0:01:44]} 18. Kd2 {[%clk 0:01:52]}  Bf5 {[%clk 0:01:43]} 19. Nf4 {[%clk 0:01:48]}  Rf8 {[%clk 0:01:42]} 20. Ke3 {[%clk 0:01:39]}  Bd7 {[%clk 0:01:20]} 21. Nxd5 {[%clk 0:00:55]}  Nxd5+ {[%clk 0:01:16]} 22. Kd4 {[%clk 0:00:56]}  Bc6 {[%clk 0:01:10]} 23. Kxe5 {[%clk 0:00:56]}  Nxc3 {[%clk 0:01:10]} 24. f3 {[%clk 0:00:55]}  Rf5+ {[%clk 0:01:08]} 25. Kd4 {[%clk 0:00:53]}  Nb5+ {[%clk 0:01:07]} 26. Ke3 {[%clk 0:00:52]}  Rxg5 {[%clk 0:01:07]} 27. a4 {[%clk 0:00:52]}  Nc7 {[%clk 0:01:02]} 28. g4 {[%clk 0:00:52]}  Re5+ {[%clk 0:00:59]} 29. Kf2 {[%clk 0:00:51]}  Re7 {[%clk 0:00:59]} 30. Rhe1 {[%clk 0:00:48]}  Rf7 {[%clk 0:00:59]} 31. Re3 {[%clk 0:00:47]}  Nd5 {[%clk 0:00:59]} 32. Re5 {[%clk 0:00:22]}  Nb4 {[%clk 0:00:59]} 0-1


[Site "https://www.chess.com"]

[Event "Titled Tuesday Blitz June 27 Early 2023"]
[White "Skliarov, Viktor"]
[Black "Ai, Evan"]
[WhiteFideId "14106736"]
[BlackFideId "2094770"]
[WhiteElo "2556"]
[BlackElo "2422"]
[Result "0-1"]
[Round "9"]
[TimeControl "180+2"]
[Date "2023.06.27"]
[WhiteClock "0:00:17"]
[BlackClock "0:00:08"]
[Board "96"]

1. e4 {[%clk 0:03:00]}  e5 {[%clk 0:02:59]} 2. Nc3 {[%clk 0:03:01]}  Nf6 {[%clk 0:02:58]} 3. Bc4 {[%clk 0:03:01]}  Bc5 {[%clk 0:02:58]} 4. d3 {[%clk 0:03:02]}  d6 {[%clk 0:02:49]} 5. h3 {[%clk 0:03:00]}  h6 {[%clk 0:02:48]} 6. Nge2 {[%clk 0:03:00]}  c6 {[%clk 0:02:47]} 7. Ng3 {[%clk 0:02:58]}  b5 {[%clk 0:02:45]} 8. Bb3 {[%clk 0:02:58]}  a5 {[%clk 0:02:44]} 9. a4 {[%clk 0:02:58]}  b4 {[%clk 0:02:43]} 10. Nce2 {[%clk 0:02:57]}  h5 {[%clk 0:02:34]} 11. d4 {[%clk 0:02:34]}  exd4 {[%clk 0:02:26]} 12. Nxd4 {[%clk 0:02:33]}  Qb6 {[%clk 0:02:23]} 13. Be3 {[%clk 0:02:28]}  h4 {[%clk 0:02:23]} 14. Ngf5 {[%clk 0:02:28]}  g6 {[%clk 0:02:15]} 15. Nxd6+ {[%clk 0:01:56]}  Bxd6 {[%clk 0:02:16]} 16. Nb5 {[%clk 0:01:55]}  Bc5 {[%clk 0:02:14]} 17. Bxc5 {[%clk 0:01:39]}  Qxc5 {[%clk 0:02:15]} 18. Nc7+ {[%clk 0:01:39]}  Ke7 {[%clk 0:02:11]} 19. Nxa8 {[%clk 0:01:40]}  Rd8 {[%clk 0:02:11]} 20. Qf3 {[%clk 0:01:32]}  Bb7 {[%clk 0:01:41]} 21. Nc7 {[%clk 0:01:23]}  Qe5 {[%clk 0:01:23]} 22. O-O {[%clk 0:01:19]}  Qxc7 {[%clk 0:01:21]} 23. e5 {[%clk 0:01:19]}  Nd5 {[%clk 0:01:19]} 24. Qg4 {[%clk 0:01:17]}  Nd7 {[%clk 0:01:15]} 25. Qxh4+ {[%clk 0:01:12]}  Ke8 {[%clk 0:01:15]} 26. Bxd5 {[%clk 0:00:57]}  cxd5 {[%clk 0:01:16]} 27. e6 {[%clk 0:00:57]}  fxe6 {[%clk 0:01:04]} 28. Rfe1 {[%clk 0:00:58]}  Nf8 {[%clk 0:01:00]} 29. Rac1 {[%clk 0:00:47]}  Qe7 {[%clk 0:00:59]} 30. Qg3 {[%clk 0:00:41]}  Qd6 {[%clk 0:00:57]} 31. Qe3 {[%clk 0:00:41]}  d4 {[%clk 0:00:53]} 32. Qg5 {[%clk 0:00:39]}  Qd5 {[%clk 0:00:49]} 33. Re5 {[%clk 0:00:39]}  Qd6 {[%clk 0:00:32]} 34. Rxa5 {[%clk 0:00:38]}  Bd5 {[%clk 0:00:30]} 35. Ra7 {[%clk 0:00:38]}  Rd7 {[%clk 0:00:29]} 36. Ra8+ {[%clk 0:00:37]}  Bxa8 {[%clk 0:00:29]} 37. Re1 {[%clk 0:00:34]}  Bd5 {[%clk 0:00:26]} 38. b3 {[%clk 0:00:33]}  Rc7 {[%clk 0:00:23]} 39. Qf6 {[%clk 0:00:31]}  Rxc2 {[%clk 0:00:16]} 40. Qxd4 {[%clk 0:00:31]}  Rc3 {[%clk 0:00:14]} 41. a5 {[%clk 0:00:28]}  Rxb3 {[%clk 0:00:14]} 42. Qf6 {[%clk 0:00:24]}  Ra3 {[%clk 0:00:13]} 43. Rc1 {[%clk 0:00:24]}  Qd7 {[%clk 0:00:09]} 44. Rb1 {[%clk 0:00:20]}  b3 {[%clk 0:00:09]} 45. Qc3 {[%clk 0:00:19]}  Qc6 {[%clk 0:00:07]} 46. Qb4 {[%clk 0:00:19]}  Ra2 {[%clk 0:00:07]} 47. Qb8+ {[%clk 0:00:19]}  Kf7 {[%clk 0:00:07]} 48. a6 {[%clk 0:00:19]}  Nd7 {[%clk 0:00:07]} 49. Qf4+ {[%clk 0:00:18]}  Ke8 {[%clk 0:00:08]} 50. Qg5 {[%clk 0:00:17]}  Qxa6 {[%clk 0:00:08]} 51. Qxg6+ {[%clk 0:00:17]}  Kd8 {[%clk 0:00:08]} 52. Kh2 {[%clk 0:00:18]}  Qd6+ {[%clk 0:00:08]} 53. g3 {[%clk 0:00:18]}  Ne5 {[%clk 0:00:07]} 54. Qg8+ {[%clk 0:00:18]}  Ke7 {[%clk 0:00:07]} 55. Qg7+ {[%clk 0:00:17]}  Nf7 {[%clk 0:00:07]} 56. h4 {[%clk 0:00:18]}  Rxf2+ {[%clk 0:00:07]} 57. Kg1 {[%clk 0:00:17]}  Rg2+ {[%clk 0:00:07]} 58. Kf1 {[%clk 0:00:17]}  Qa6+ {[%clk 0:00:07]} 59. Ke1 {[%clk 0:00:17]}  Qe2# {[%clk 0:00:08]} 0-1


[Site "https://www.chess.com"]

[Event "Titled Tuesday Blitz June 27 Early 2023"]
[White "Perez, Maximiliano"]
[Black "Dinu, Dumitru-Daniel"]
[WhiteFideId "117234"]
[BlackFideId "1208403"]
[WhiteElo "2543"]
[BlackElo "2414"]
[Result "0-1"]
[Round "9"]
[TimeControl "180+2"]
[Date "2023.06.27"]
[WhiteClock "0:00:02"]
[BlackClock "0:00:01"]
[Board "98"]

1. e4 {[%clk 0:03:00]}  c5 {[%clk 0:02:57]} 2. Nf3 {[%clk 0:03:00]}  Nc6 {[%clk 0:02:54]} 3. d4 {[%clk 0:02:56]}  cxd4 {[%clk 0:02:54]} 4. Nxd4 {[%clk 0:02:57]}  Nf6 {[%clk 0:02:55]} 5. Nc3 {[%clk 0:02:57]}  e5 {[%clk 0:02:51]} 6. Ndb5 {[%clk 0:02:56]}  d6 {[%clk 0:02:50]} 7. Nd5 {[%clk 0:02:56]}  Nxd5 {[%clk 0:02:44]} 8. exd5 {[%clk 0:02:57]}  Nb8 {[%clk 0:02:43]} 9. a4 {[%clk 0:02:54]}  Be7 {[%clk 0:02:19]} 10. Be2 {[%clk 0:02:51]}  O-O {[%clk 0:02:18]} 11. O-O {[%clk 0:02:51]}  f5 {[%clk 0:02:17]} 12. a5 {[%clk 0:02:45]}  a6 {[%clk 0:02:09]} 13. Nc3 {[%clk 0:02:45]}  Nd7 {[%clk 0:02:08]} 14. b4 {[%clk 0:02:44]}  Bf6 {[%clk 0:01:54]} 15. Ra3 {[%clk 0:02:43]}  e4 {[%clk 0:01:42]} 16. Bf4 {[%clk 0:02:38]}  Ne5 {[%clk 0:01:41]} 17. Na4 {[%clk 0:02:36]}  Ng6 {[%clk 0:01:17]} 18. Bc1 {[%clk 0:02:20]}  f4 {[%clk 0:01:11]} 19. Nb6 {[%clk 0:01:56]}  Rb8 {[%clk 0:01:09]} 20. f3 {[%clk 0:01:56]}  e3 {[%clk 0:01:02]} 21. c4 {[%clk 0:01:46]}  Be5 {[%clk 0:00:56]} 22. c5 {[%clk 0:01:27]}  Bf5 {[%clk 0:00:50]} 23. c6 {[%clk 0:01:25]}  bxc6 {[%clk 0:00:47]} 24. dxc6 {[%clk 0:01:26]}  Rxb6 {[%clk 0:00:42]} 25. axb6 {[%clk 0:01:24]}  Qxb6 {[%clk 0:00:42]} 26. Rxa6 {[%clk 0:01:23]}  Qxb4 {[%clk 0:00:42]} 27. Ba3 {[%clk 0:01:19]}  Qc3 {[%clk 0:00:37]} 28. Bxd6 {[%clk 0:01:14]}  Rc8 {[%clk 0:00:14]} 29. Qd5+ {[%clk 0:01:09]}  Kh8 {[%clk 0:00:12]} 30. Bxe5 {[%clk 0:01:09]}  Nxe5 {[%clk 0:00:12]} 31. Ra5 {[%clk 0:01:04]}  Bd3 {[%clk 0:00:09]} 32. Rc5 {[%clk 0:00:51]}  Qd2 {[%clk 0:00:07]} 33. c7 {[%clk 0:00:42]}  h5 {[%clk 0:00:03]} 34. Qd8+ {[%clk 0:00:35]}  Kh7 {[%clk 0:00:02]} 35. Rxe5 {[%clk 0:00:34]}  Qxe2 {[%clk 0:00:02]} 36. Rxh5+ {[%clk 0:00:16]}  Kg6 {[%clk 0:00:02]} 37. Rg5+ {[%clk 0:00:17]}  Kh6 {[%clk 0:00:02]} 38. Ra1 {[%clk 0:00:14]}  Qf2+ {[%clk 0:00:02]} 39. Kh1 {[%clk 0:00:14]}  e2 {[%clk 0:00:02]} 40. Qd6+ {[%clk 0:00:08]}  Kxg5 {[%clk 0:00:02]} 41. Qe5+ {[%clk 0:00:05]}  Bf5 {[%clk 0:00:02]} 42. Rg1 {[%clk 0:00:04]}  Rxc7 {[%clk 0:00:01]} 43. g3 {[%clk 0:00:02]}  Qxf3+ {[%clk 0:00:01]} 44. Rg2 {[%clk 0:00:02]}  Rc1# {[%clk 0:00:01]} 0-1


[Site "https://www.chess.com"]